bitfinex-derivatives/quotes_SOLF0:USTF0_20251101
["timestamp","ask_amount","ask_price","bid_price","bid_amount"]
[1761983615687,1.24,185.85,185.78,2.78]
[1761983615887,8.70766466,185.84,185.78,2.78]
[1761983616089,8.70766466,185.83,185.78,2.78]
[1761983616289,4.46431947,185.82,185.78,2.78]
[1761983616489,1.24,185.85,185.78,2.78]
[1761983616695,8.70865777,185.84,185.8,2.78]
[1761983616994,4.46482863,185.83,185.8,2.78]
[1761983617292,1.24,185.85,185.8,2.78]
[1761983617493,8.70949001,185.84,185.8,2.78]
[1761983617795,4.46536302,185.83,185.8,2.78]
[1761983617995,1.24,185.85,185.8,2.78]
[1761983618192,8.70949001,185.84,185.8,2.78]
[1761983618392,4.46536302,185.83,185.8,2.78]
[1761983618597,1.24,185.93,185.8,2.78]
[1761983618886,1.24,185.91,185.8,2.78]
[1761983619091,1.24,185.89,185.81,2.78]
[1761983619294,2.87555293,185.94,185.8,7.72185293]
[1761983619295,9.9502338,185.88,185.83,2.78]
[1761983619490,8.7102338,185.87,185.83,2.78]
[1761983619792,8.7102338,185.86,185.83,2.78]
[1761983619991,4.46574471,185.85,185.83,2.78]
[1761983620197,1.24,185.88,185.83,2.78]
[1761983620495,8.7089886,185.87,185.83,2.78]
[1761983620696,8.7089886,185.86,185.83,2.78]
[1761983620890,4.46536956,185.85,185.83,2.78]
[1761983621090,1.24,185.88,185.83,2.78]
[1761983621393,8.7089886,185.87,185.83,2.78]
[1761983621588,8.7089886,185.86,185.83,2.78]
[1761983621786,4.46536956,185.85,185.83,2.78]
[1761983621981,1.24,185.88,185.83,2.78]
[1761983622191,8.70866033,185.87,185.83,2.78]
[1761983622388,9.94866033,185.86,185.83,2.78]
[1761983622588,1.24,185.84,185.82,56.4]
[1761983622793,1.24,185.87,185.83,2.78]
[1761983622993,2.87555293,185.94,185.83,2.78]
[1761983622994,9.9489068,185.86,185.83,2.78]
[1761983623298,4.46532762,185.85,185.83,2.78]
[1761983623991,5.70532762,185.85,185.83,2.78]
[1761983624293,4.46642919,185.84,185.83,2.78]
[1761983624997,1.24,185.83,185.8,5.02608419]
[1761983625195,4.46615078,185.82,185.8,2.78]
[1761983625899,1.24,185.84,185.8,2.78]
[1761983626197,8.71091237,185.83,185.8,2.78]
[1761983626396,4.46613099,185.82,185.8,2.78]
[1761983626591,1.24,185.84,185.8,2.78]
[1761983626790,8.71236223,185.83,185.8,2.78]
[1761983626991,4.46688869,185.82,185.8,2.78]
[1761983627299,1.24,185.84,185.8,2.78]
[1761983627502,8.71391867,185.83,185.8,2.78]
[1761983627798,4.46768669,185.82,185.8,2.78]
[1761983627998,1.24,185.84,185.8,2.78]
[1761983628201,8.71391867,185.83,185.8,2.78]
[1761983628399,4.46768669,185.82,185.8,2.78]
[1761983628602,1.24,185.84,185.8,2.78]
[1761983628803,8.71529201,185.83,185.8,2.78]
[1761983629004,1.24,185.81,185.77,5.02608419]
[1761983629205,1.24,185.79,185.77,2.96]
[1761983629900,1.24,185.79,185.77,7.98608419]
[1761983631000,1.24,185.79,185.77,5.02608419]
[1761983631206,1.24,185.79,185.76,5.02608419]
[1761983632702,4.470038,185.78,185.75,5.02608419]
[1761983633000,1.24,185.77,185.75,5.02608419]
[1761983633400,1.24,185.77,185.74,5.02608419]
[1761983633606,5.71016001,185.76,185.73,7.98608419]
[1761983633801,1.24,185.76,185.73,7.98608419]
[1761983639510,1.24,185.8,185.74,7.98608419]
[1761983639707,1.24,185.78,185.74,7.98608419]
[1761983639893,9.9761619,185.77,185.74,7.98608419]
[1761983640094,4.47147485,185.76,185.74,7.98608419]
[1761983640495,5.71147485,185.76,185.74,7.98608419]
[1761983640708,1.24,185.76,185.74,7.98608419]
[1761983643118,1.24,185.8,185.75,2.96]
[1761983643410,9.97924516,185.79,185.75,2.96]
[1761983643611,8.73924516,185.78,185.75,2.96]
[1761983643809,1.24,185.79,185.76,2.96]
[1761983643810,8.73924516,185.77,185.76,2.96]
[1761983644004,4.47305405,185.77,185.76,7.98608419]
[1761983644210,1.24,185.8,185.77,2.96]
[1761983644412,8.74098622,185.79,185.77,2.96]
[1761983644706,4.47407893,185.78,185.77,7.98608419]
[1761983644903,4.47407893,185.79,185.77,7.98608419]
[1761983645105,4.47407893,185.78,185.77,7.98608419]
[1761983645412,1.24,185.8,185.77,7.98608419]
[1761983645603,8.74269539,185.79,185.77,7.98608419]
[1761983645803,1.24,185.8,185.77,7.98608419]
[1761983646002,8.74269539,185.79,185.77,7.98608419]
[1761983646206,4.47583479,185.78,185.77,7.98608419]
[1761983646402,4.47583479,185.79,185.77,7.98608419]
[1761983646717,4.47583479,185.78,185.77,7.98608419]
[1761983646910,4.47583479,185.79,185.77,7.98608419]
[1761983647111,4.47583479,185.78,185.77,7.98608419]
[1761983647413,4.47583479,185.78,185.77,2.96]
[1761983647712,4.47583479,185.79,185.77,2.96]
[1761983647911,4.47583479,185.78,185.77,2.96]
[1761983648114,4.47583479,185.79,185.77,2.96]
[1761983648313,4.47583479,185.78,185.77,2.96]
[1761983654220,8.74559807,185.78,185.77,2.96]
[1761983657616,8.74559807,185.78,185.76,6.71303547]
[1761983657617,5.71583479,185.78,185.76,6.71303547]
[1761983657822,5.71750599,185.77,185.75,82.69303547]
[1761983658018,1.24,185.77,185.75,82.69303547]
[1761983659216,1.24,185.77,185.75,75.98]
[1761983659416,1.24,185.77,185.75,82.69303547]
[1761983660221,1.24,185.77,185.75,75.98]
[1761983660421,1.24,185.77,185.75,82.69303547]
[1761983661019,1.24,185.77,185.75,85.51303547]
[1761983661724,5.69691895,185.76,185.75,75.98]
[1761983661921,9.96651152,185.76,185.75,75.98]
[1761983663528,9.96651152,185.76,185.75,81.00835517]
[1761983665123,9.96651152,185.76,185.75,75.98]
[1761983676541,9.96651152,185.76,185.75,82.69303547]
[1761983677540,8.74651152,185.76,185.75,85.59303547]
[1761983677943,9.98651152,185.76,185.75,6.71303547]
[1761983678136,1.24,185.75,185.73,82.69303547]
[1761983678443,8.74651152,185.74,185.73,85.59303547]
[1761983682143,8.74651152,185.74,185.73,78.88]
[1761983687447,8.74651152,185.74,185.73,88.94352695]
[1761983695449,4.47691895,185.74,185.73,78.88]
[1761983695955,1.24,185.8,185.74,2.7]
[1761983696158,10.04161341,185.79,185.77,2.7]
[1761983696348,8.80161341,185.78,185.77,78.68]
[1761983697452,8.80161341,185.78,185.77,85.39925017]
[1761983697654,8.80161341,185.78,185.77,78.68]
[1761983699353,8.80161341,185.78,185.77,88.75887526]
[1761983700356,8.80161341,185.78,185.77,78.68]
[1761983700357,4.48513324,185.78,185.77,78.68]
[1761983700959,1.24,185.86,185.79,2.7]
[1761983701148,10.00857429,185.85,185.83,7.73903115]
[1761983701348,1.24,185.85,185.84,5.03903115]
[1761983701662,1.24,185.84,185.83,81.01903115]
[1761983701857,10.00520459,185.84,185.83,81.01903115]
[1761983702059,10.00520459,185.84,185.83,75.98]
[1761983702261,10.00520459,185.84,185.83,81.01471066]
[1761983703360,10.00520459,185.84,185.83,75.98]
[1761983705158,8.76520459,185.84,185.83,78.68]
[1761983705364,8.76520459,185.84,185.83,83.71471066]
[1761983705566,8.76520459,185.84,185.83,78.68]
[1761983707269,4.48511876,185.84,185.83,85.3987082]
[1761983708364,1.24,185.89,185.84,2.7]
[1761983708564,8.75476614,185.88,185.86,2.7]
[1761983708775,8.75476614,185.87,185.86,2.7]
[1761983708966,8.75476614,185.87,185.86,78.66]
[1761983713070,1.24,185.92,185.87,2.7]
[1761983713374,1.24,185.9,185.87,2.7]
[1761983713572,8.74132745,185.89,185.87,2.7]
[1761983713775,4.47348367,185.88,185.87,2.7]
[1761983714275,1.24,185.87,185.84,5.0134248]
[1761983714462,9.97388122,185.86,185.84,59.26]
[1761983714661,1.24,185.86,185.84,59.26]
[1761983714868,1.24,185.86,185.84,61.96]
[1761983715261,1.24,185.92,185.85,2.7]
[1761983715464,1.24,185.9,185.85,2.7]
[1761983715663,8.73284219,185.89,185.86,2.7]
[1761983715876,1.24,185.93,185.88,2.7]
[1761983716076,1.24,185.91,185.88,2.7]
[1761983716268,8.73535404,185.9,185.88,2.7]
[1761983716471,4.47112031,185.89,185.88,2.7]
[1761983717467,1.24,185.92,185.88,2.7]
[1761983717672,9.97314716,185.91,185.88,2.7]
[1761983717973,8.73314716,185.9,185.88,2.7]
[1761983718167,4.47112031,185.89,185.88,2.7]
[1761983719667,4.47112031,185.9,185.88,2.7]
[1761983719868,1.24,185.94,185.88,2.7]
[1761983719869,4.47112031,185.89,185.88,2.7]
[1761983720079,4.47112031,185.92,185.88,2.7]
[1761983720274,8.73188097,185.91,185.88,2.7]
[1761983720470,8.73188097,185.9,185.88,2.7]
[1761983720678,1.24,185.93,185.88,2.7]
[1761983720877,8.7270335,185.92,185.88,2.7]
[1761983721076,8.7270335,185.91,185.88,2.7]
[1761983721273,8.7270335,185.9,185.88,2.7]
[1761983721472,1.24,185.93,185.88,2.7]
[1761983721671,9.96616153,185.92,185.88,2.7]
[1761983721977,8.72616153,185.91,185.88,2.7]
[1761983722164,8.72616153,185.9,185.88,2.7]
[1761983722367,1.24,185.92,185.88,2.7]
[1761983722578,8.72534983,185.91,185.88,2.7]
[1761983722772,8.72534983,185.9,185.88,2.7]
[1761983722978,1.24,185.92,185.88,2.7]
[1761983723281,1.24,185.9,185.88,2.7]
[1761983724579,1.24,185.94,185.88,2.7]
[1761983724780,9.96347248,185.93,185.88,2.7]
[1761983725076,8.72347248,185.92,185.88,2.7]
[1761983725280,1.24,186.0,185.88,2.7]
[1761983725473,1.24,185.98,185.89,2.68]
[1761983725668,1.24,185.96,185.89,2.68]
[1761983725868,8.7214605,185.95,185.89,2.68]
[1761983726075,9.9614605,185.94,185.89,2.68]
[1761983726281,1.24,185.94,185.89,2.68]
[1761983727175,1.24,186.03,185.89,2.68]
[1761983727477,1.24,186.01,185.89,2.68]
[1761983727673,78.79003302,186.04,185.89,2.68]
[1761983727674,1.24,185.99,185.9,2.68]
[1761983727880,9.95832352,185.98,185.92,2.68]
[1761983728178,9.95832352,185.97,185.92,2.68]
[1761983728364,9.95832352,185.96,185.92,2.68]
[1761983728570,4.46285047,185.95,185.92,2.68]
[1761983729391,1.24,185.96,185.92,2.68]
[1761983729582,1.24,185.94,185.91,67.62]
[1761983729975,1.24,185.94,185.91,70.3]
[1761983730175,1.24,185.94,185.91,2.68]
[1761983733475,1.24,185.94,185.9,41.1]
[1761983733877,1.24,185.92,185.9,41.1]
[1761983734279,4.46318871,185.91,185.9,41.1]
[1761983734883,5.70318871,185.91,185.9,41.1]
[1761983735385,10.00148125,185.91,185.9,41.1]
[1761983735580,8.76148125,185.91,185.9,41.1]
[1761983737781,10.00148125,185.91,185.9,41.1]
[1761983738682,10.00148125,185.91,185.87,2.68]
[1761983738886,8.76148125,185.9,185.87,2.68]
[1761983739183,1.24,185.91,185.87,2.68]
[1761983739384,1.24,185.89,185.86,5.00219519]
[1761983739584,1.24,185.89,185.85,7.68219519]
[1761983739781,1.24,185.89,185.85,5.00219519]
[1761983739978,10.01583847,185.88,185.85,2.68]
[1761983740182,1.24,185.88,185.85,2.68]
[1761983740379,1.24,185.88,185.84,5.00219519]
[1761983740598,10.02016775,185.87,185.84,7.68219519]
[1761983740784,1.24,185.87,185.84,7.68219519]
[1761983741488,1.24,185.87,185.84,5.00219519]
[1761983742288,10.02855269,185.86,185.85,5.00219519]
[1761983742489,1.24,185.85,185.83,5.00219519]
[1761983742690,10.02855269,185.84,185.82,5.00219519]
[1761983742886,1.24,185.84,185.82,5.00219519]
[1761983743289,4.47943555,185.83,185.82,2.68]
[1761983745494,5.71943555,185.86,185.82,2.68]
[1761983745696,8.79369608,185.85,185.83,7.7017923]
[1761983745997,8.79369608,185.84,185.83,7.7017923]
[1761983748202,8.79369608,185.84,185.83,2.68]
[1761983752400,4.47943555,185.84,185.83,2.68]
[1761983753606,1.22,185.88,185.84,2.74]
[1761983753809,8.7966236,185.87,185.85,5.02407518]
[1761983754003,8.7966236,185.86,185.85,5.02407518]
[1761983755007,8.7966236,185.86,185.85,7.76407518]
[1761983757611,8.7966236,185.86,185.85,17.45606199]
[1761983758613,8.7966236,185.86,185.85,12.43198681]
[1761983760625,8.796832,185.86,185.85,12.43198681]
[1761983763127,10.016832,185.86,185.85,14.714814]
[1761983763330,10.016832,185.86,185.85,9.69198681]
[1761983764222,11.85217211,185.86,185.85,9.69198681]
[1761983766126,10.016832,185.86,185.85,9.69198681]
[1761983772129,8.796832,185.86,185.85,9.69198681]
[1761983772330,8.796832,185.86,185.85,12.43198681]
[1761983772530,8.796832,185.86,185.85,9.69198681]
[1761983773431,8.796832,185.86,185.85,12.43198681]
[1761983776434,8.796832,185.86,185.85,17.454814]
[1761983779738,8.76181252,185.86,185.85,17.454814]
[1761983782341,8.76181252,185.86,185.85,12.43198681]
[1761983785541,8.76181252,185.86,185.85,19.15069501]
[1761983786744,8.76181252,185.86,185.85,12.43198681]
[1761983788346,9.99181252,185.86,185.85,9.69198681]
[1761983788551,9.99181252,185.86,185.85,14.72762738]
[1761983792042,8.76181252,185.86,185.85,17.42762738]
[1761983792250,8.76181252,185.86,185.85,12.39198681]
[1761983796450,9.99181252,185.86,185.85,9.69198681]
[1761983796651,8.76181252,185.86,185.85,12.39198681]
[1761983797452,8.76181252,185.86,185.85,19.11069501]
[1761983801452,8.76181252,185.86,185.85,12.39198681]
[1761983802561,9.99181252,185.86,185.85,9.69198681]
[1761983805361,8.76181252,185.86,185.85,12.39198681]
[1761983807662,10.00181252,185.86,185.85,9.69198681]
[1761983807963,8.76181252,185.86,185.85,12.60198681]
[1761983809459,10.00181252,185.86,185.85,9.69198681]
[1761983809962,10.00181252,185.86,185.85,14.72902304]
[1761983810464,1.24,185.86,185.85,14.72902304]
[1761983810662,10.20208261,185.86,185.85,9.69198681]
[1761983815869,5.70820621,185.86,185.85,9.69198681]
[1761983816060,10.20120144,185.86,185.85,9.69198681]
[1761983816267,10.20089745,185.86,185.85,9.69198681]
[1761983821270,10.20089745,185.86,185.8,5.03703623]
[1761983821271,1.24,185.85,185.8,5.03703623]
[1761983821580,1.24,185.83,185.78,5.03703623]
[1761983821876,8.96089745,185.82,185.81,2.91]
[1761983822077,8.96089745,185.82,185.81,7.94703623]
[1761983823880,10.20089745,185.82,185.81,5.03703623]
[1761983824283,1.24,185.81,185.79,5.03703623]
[1761983824483,8.9524752,185.8,185.79,5.03703623]
[1761983824678,10.1924752,185.8,185.79,5.03703623]
[1761983824875,10.1924752,185.8,185.78,7.94703623]
[1761983825076,1.24,185.8,185.79,5.03703623]
[1761983825277,10.12441534,185.8,185.78,7.94703623]
[1761983825479,8.88441534,185.79,185.78,7.94703623]
[1761983825968,8.88441534,185.79,185.78,9.02703623]
[1761983826169,8.88441534,185.79,185.78,3.99]
[1761983828280,1.24,185.87,185.79,2.91]
[1761983828479,1.24,185.87,185.82,2.91]
[1761983829480,1.24,185.93,185.83,2.91]
[1761983830887,2.86745687,185.91,185.83,2.91]
[1761983831189,1.24,185.9,185.82,5.02948395]
[1761983831392,1.24,185.9,185.81,5.02948395]
[1761983831591,1.24,185.9,185.8,7.93948395]
[1761983832388,1.24,185.87,185.79,5.02948395]
[1761983832584,1.24,185.87,185.79,7.93948395]
[1761983832787,1.24,185.87,185.8,2.91]
[1761983835286,1.24,185.87,185.8,7.93948395]
[1761983835896,1.24,185.87,185.81,2.91]
[1761983836197,1.22,185.9,185.83,2.91]
[1761983837598,1.22,185.9,185.84,2.91]
[1761983838198,1.22,185.9,185.85,2.91]
[1761983840204,8.72440098,185.89,185.85,2.91]
[1761983840405,8.72440098,185.88,185.85,2.91]
[1761983840601,8.72440098,185.87,185.85,2.91]
[1761983840905,8.72440098,185.86,185.85,2.91]
[1761983842007,8.72440098,185.86,185.85,7.93948395]
[1761983842509,8.72440098,185.86,185.85,2.91]
[1761983842807,8.72440098,185.86,185.84,2.67]
[1761983843110,8.72440098,185.85,185.84,2.67]
[1761983843707,8.72440098,185.85,185.83,5.02948395]
[1761983844010,8.72440098,185.84,185.83,7.69948395]
[1761983850606,8.72440098,185.84,185.83,5.02948395]
[1761983851004,8.72440098,185.84,185.83,7.69948395]
[1761983852817,9.96440098,185.84,185.83,5.02948395]
[1761983853113,1.24,185.83,185.82,5.02948395]
[1761983853415,9.96440098,185.83,185.82,5.02948395]
[1761983854907,1.24,185.82,185.81,5.02948395]
[1761983855107,9.96440098,185.82,185.81,5.02948395]
[1761983856817,8.72440098,185.82,185.81,7.69948395]
[1761983859119,8.72440098,185.82,185.81,5.02948395]
[1761983861116,8.72440098,185.82,185.81,7.69948395]
[1761983862020,8.72440098,185.82,185.81,2.67]
[1761983864716,8.72440098,185.82,185.81,9.3759786]
[1761983876132,8.72440098,185.82,185.81,6.7059786]
[1761983876426,9.96440098,185.82,185.8,9.4659786]
[1761983876627,8.72440098,185.81,185.8,9.4659786]
[1761983878821,9.96440098,185.81,185.8,6.7059786]
[1761983879026,9.96440098,185.81,185.79,9.4659786]
[1761983879226,3.07597174,185.83,185.8,2.76]
[1761983879426,9.88040014,185.82,185.8,2.76]
[1761983879728,8.64040014,185.81,185.8,2.76]
[1761983880232,8.64040014,185.81,185.79,9.4659786]
[1761983880437,4.4233006,185.8,185.79,9.4659786]
[1761983880636,8.64077606,185.8,185.79,9.4659786]
[1761983882835,9.88077606,185.8,185.79,6.7059786]
[1761983883834,8.64077606,185.8,185.79,9.4659786]
[1761983884139,4.4233006,185.8,185.79,9.4659786]
[1761983884341,8.64098978,185.8,185.79,9.4659786]
[1761983887049,8.64098978,185.8,185.79,2.76]
[1761983889742,8.64098978,185.8,185.79,14.67403404]
[1761983890948,8.64098978,185.8,185.79,19.52083404]
[1761983892652,8.64098978,185.8,185.79,17.6848623]
[1761983893349,3.61572913,185.8,185.79,17.6848623]
[1761983893545,1.24,185.91,185.81,2.76]
[1761983893739,1.24,185.89,185.86,5.03683968]
[1761983893941,1.24,185.87,185.86,5.03683968]
[1761983894140,5.45817185,185.87,185.86,5.03683968]
[1761983894542,5.45796456,185.87,185.86,5.03683968]
[1761983894745,5.45796456,185.87,185.85,5.03683968]
[1761983894956,4.21796456,185.86,185.85,5.03683968]
[1761983895457,5.45796456,185.86,185.85,5.03683968]
[1761983904760,5.45642275,185.86,185.85,5.03683968]
[1761983905257,9.86234884,185.86,185.85,5.03683968]
[1761983914075,9.86234884,185.86,185.84,7.89683968]
[1761983914368,8.62234884,185.85,185.84,7.89683968]
[1761983919980,8.62234884,185.85,185.84,2.86]
[1761983920178,8.62130709,185.85,185.84,2.86]
[1761983920879,8.62130709,185.85,185.84,9.57578624]
[1761983928891,9.85130709,185.85,185.84,9.57578624]
[1761983929082,9.85130709,185.85,185.84,6.71578624]
[1761983929390,8.62130709,185.85,185.84,9.62578624]
[1761983932188,9.85130709,185.85,185.83,6.71578624]
[1761983932386,8.62130709,185.84,185.83,9.62578624]
[1761983934391,9.85130709,185.84,185.83,6.71578624]
[1761983934693,1.23,185.83,185.82,6.71578624]
[1761983934879,9.85130709,185.83,185.82,6.71578624]
[1761983935697,9.85130709,185.83,185.82,9.62578624]
[1761983935698,8.62130709,185.83,185.82,9.62578624]
[1761983942607,8.62130709,185.83,185.82,2.91]
[1761983944200,4.40488434,185.83,185.82,12.98367936]
[1761983945002,4.40488434,185.83,185.82,2.91]
[1761983946311,4.40488434,185.83,185.82,78.81]
[1761983948412,4.40488434,185.83,185.82,88.88422423]
[1761983951512,1.23,185.87,185.83,2.91]
[1761983951815,8.64114273,185.86,185.85,9.6253784]
[1761983953818,8.64114273,185.86,185.85,2.91]
[1761983955820,8.64114273,185.86,185.85,9.62330268]
[1761983957618,8.64114273,185.86,185.85,2.91]
[1761983959412,9.87114273,185.86,185.84,10.0730676]
[1761983959621,4.4064322,185.85,185.84,12.8430676]
[1761983960809,5.6464322,185.85,185.84,10.0730676]
[1761983962021,5.6464322,185.85,185.83,10.0730676]
[1761983962022,9.87901424,185.85,185.83,10.0730676]
[1761983962225,9.87901424,185.85,185.83,12.8430676]
[1761983962226,4.4064322,185.84,185.83,12.8430676]
[1761983962726,5.6464322,185.84,185.83,10.0730676]
[1761983963027,9.87978969,185.84,185.83,75.88]
[1761983964624,1.24,185.83,185.82,10.0730676]
[1761983964828,1.24,185.83,185.79,2.77]
[1761983964829,1.24,185.82,185.81,10.0730676]
[1761983965013,5.6464322,185.82,185.81,85.9530676]
[1761983966527,9.8807272,185.82,185.81,75.88]
[1761983969831,8.6407272,185.82,185.81,78.65]
[1761983971131,9.8807272,185.82,185.81,75.88]
[1761983977034,9.8807272,185.82,185.81,78.65]
[1761983978628,9.8807272,185.82,185.81,75.88]
[1761983979236,9.8807272,185.82,185.81,82.59155337]
[1761983979633,1.24,185.81,185.8,6.71155337]
[1761983979839,1.24,185.8,185.79,6.71155337]
[1761983980040,9.8807272,185.8,185.79,6.71155337]
[1761983987448,1.24,185.79,185.78,82.61155337]
[1761983987748,9.90165967,185.79,185.78,82.61155337]
[1761983988146,5.6464322,185.79,185.78,82.61155337]
[1761983991043,5.6464322,185.79,185.78,85.52155337]
[1761983991247,1.24,185.79,185.78,85.52155337]
[1761983991654,1.24,185.86,185.78,85.52155337]
[1761983991948,1.24,185.84,185.8,5.02865142]
[1761983992147,1.24,185.82,185.8,5.02865142]
[1761983992445,9.89133673,185.81,185.8,5.02865142]
[1761983992957,8.65133673,185.81,185.8,7.93865142]
[1761983998450,8.65133673,185.81,185.8,2.91]
[1761984000056,1.24,185.84,185.8,2.91]
[1761984000257,1.24,185.84,185.78,75.9]
[1761984000455,1.24,185.84,185.78,78.81]
[1761984000760,17.5,185.94,185.81,5.02904233]
[1761984000761,1.24,185.82,185.81,5.02904233]
[1761984001055,9.96280464,185.82,185.81,5.02904233]
[1761984002057,8.72280464,185.82,185.81,5.02904233]
[1761984003245,9.96280464,185.82,185.81,5.02904233]
[1761984003450,8.72280464,185.82,185.81,7.93904233]
[1761984004251,8.7251684,185.82,185.81,7.93904233]
[1761984004964,9.9651684,185.82,185.81,5.02904233]
[1761984005255,1.24,185.81,185.8,5.02904233]
[1761984005450,9.9651684,185.81,185.8,5.02904233]
[1761984006857,8.7251684,185.81,185.8,2.91]
[1761984007056,8.7251684,185.81,185.8,6.70538977]
[1761984007262,8.7251684,185.81,185.78,10.05808466]
[1761984007263,1.24,185.8,185.78,10.05808466]
[1761984007461,1.24,185.78,185.77,10.05808466]
[1761984007664,9.9699242,185.78,185.77,10.05808466]
[1761984009259,8.7299242,185.78,185.77,10.05808466]
[1761984009469,8.7299242,185.78,185.77,12.96808466]
[1761984011954,9.9699242,185.78,185.77,10.05808466]
[1761984012155,1.24,185.77,185.76,10.05808466]
[1761984012358,8.7299242,185.77,185.76,12.96808466]
[1761984013270,8.72921995,185.77,185.76,12.96808466]
[1761984014564,8.7283226,185.77,185.76,12.96808466]
[1761984017868,9.9683226,185.77,185.76,10.05808466]
[1761984018266,8.7283226,185.77,185.76,10.05808466]
[1761984018458,8.7283226,185.77,185.76,12.88808466]
[1761984018660,4.32761823,185.77,185.76,2.83]
[1761984020572,4.32761823,185.77,185.76,12.90460281]
[1761984021966,8.73242802,185.77,185.76,12.90460281]
[1761984022164,8.73242802,185.77,185.76,2.83]
[1761984022362,8.73242802,185.77,185.76,12.90460281]
[1761984022966,9.97242802,185.77,185.75,10.07460281]
[1761984023263,8.73298674,185.76,185.75,10.07617905]
[1761984023462,8.73298674,185.76,185.75,12.96617905]
[1761984026073,4.32761823,185.76,185.75,2.89]
[1761984028382,1.24,185.78,185.75,2.89]
[1761984028585,8.58304044,185.77,185.76,10.07630909]
[1761984030279,8.58304044,185.77,185.76,12.96630909]
[1761984030670,9.82304044,185.77,185.76,10.07630909]
[1761984031985,1.24,185.76,185.75,10.07630909]
[1761984032272,5.64521508,185.76,185.75,10.07630909]
[1761984033876,4.40521508,185.76,185.75,12.96630909]
[1761984034469,1.24,185.79,185.76,2.89]
[1761984034774,8.58135141,185.78,185.76,2.89]
[1761984034975,8.58135141,185.77,185.76,2.89]
[1761984035480,8.58135141,185.77,185.76,12.96630909]
[1761984041280,8.58135141,185.77,185.76,2.89]
[1761984044283,8.58135141,185.77,185.76,12.96630909]
[1761984046177,1.24,185.86,185.77,2.69]
[1761984046376,1.24,185.86,185.84,5.04086691]
[1761984046578,1.24,185.86,185.85,5.04086691]
[1761984048772,6.70393471,185.97,185.85,7.73086691]
[1761984048976,1.24,185.92,185.91,5.04086691]
[1761984049177,1.24,185.92,185.9,5.04086691]
[1761984050577,1.24,185.92,185.91,9.17302908]
[1761984050882,1.24,185.92,185.91,4.13216217]
[1761984051576,1.24,185.92,185.91,9.15468543]
[1761984053287,1.24,185.92,185.91,4.13216217]
[1761984053486,1.24,185.95,185.91,11.84468543]
[1761984053689,1.24,185.95,185.92,9.15468543]
[1761984053881,1.24,185.95,185.93,9.15468543]
[1761984054082,1.24,185.95,185.94,4.13216217]
[1761984054587,1.24,185.98,185.94,6.82216217]
[1761984054790,1.24,185.98,185.95,4.13216217]
[1761984054989,1.24,185.98,185.96,4.13216217]
[1761984055190,1.24,185.98,185.94,2.69]
[1761984055490,1.24,185.98,185.95,4.12003961]
[1761984055688,1.24,185.98,185.96,4.12003961]
[1761984055890,1.24,185.98,185.92,7.71252326]
[1761984056077,1.24,185.98,185.93,4.12003961]
[1761984056281,1.24,185.98,185.94,4.12003961]
[1761984056485,1.24,185.98,185.95,4.12003961]
[1761984056678,1.24,185.98,185.92,2.69]
[1761984056877,1.24,185.98,185.93,4.11780111]
[1761984057080,1.24,185.98,185.94,4.11780111]
[1761984057281,1.24,185.98,185.95,4.11780111]
[1761984057485,1.24,185.98,185.92,2.69]
[1761984057686,1.24,185.98,185.93,4.11586843]
[1761984057887,1.24,185.98,185.94,4.11586843]
[1761984058091,1.24,185.98,185.95,4.11586843]
[1761984058292,1.24,185.96,185.92,2.69]
[1761984058487,1.24,185.96,185.9,5.02252326]
[1761984058488,1.24,185.96,185.93,6.80413797]
[1761984058694,1.24,185.96,185.94,4.11413797]
[1761984058891,1.24,185.96,185.95,4.11413797]
[1761984059193,1.24,185.96,185.93,2.69]
[1761984059399,1.24,185.96,185.94,4.11261562]
[1761984059697,1.24,185.96,185.94,2.69]